bitfinex/quotes_ETHUSD_20240530
["timestamp","ask_amount","ask_price","bid_price","bid_amount"]
[1717088515980,1.526,3785.6,3784.6,0.0469]
[1717088516236,1.526,3785.6,3785.2,0.04089226]
[1717088516399,1.526,3785.6,3784.6,0.0469]
[1717088516585,1.526,3785.6,3785.3,0.04085805]
[1717088516776,1.526,3785.6,3784.6,0.0469]
[1717088516976,1.526,3785.6,3785.4,0.04080076]
[1717088517190,1.526,3785.6,3784.6,0.0469]
[1717088517398,1.526,3785.6,3785.5,0.04074347]
[1717088517594,1.526,3785.6,3784.6,0.92045576]
[1717088517840,0.27589326,3785.7,3784.6,0.92045576]
[1717088518041,0.27589326,3785.7,3784.7,0.04119417]
[1717088519952,0.55,3785.6,3784.7,0.04119417]
[1717088521001,1.526,3785.5,3784.7,0.86266916]
[1717088521237,1.526,3785.5,3784.7,0.04119417]
[1717088521437,1.526,3785.5,3783.9,0.0469]
[1717088521438,0.55,3785.4,3783.9,1.104335]
[1717088521702,3.0,3785.5,3784.9,0.0469]
[1717088521903,0.27589326,3785.7,3784.9,0.0469]
[1717088522200,0.27589326,3785.7,3785.0,0.04104919]
[1717088522401,2.3841,3787.7,3785.6,1.0]
[1717088522645,2.3841,3787.7,3785.7,0.563672]
[1717088522852,2.3841,3787.7,3785.7,0.08755008]
[1717088523219,2.3841,3787.7,3785.7,0.0469]
[1717088523830,2.3841,3787.7,3785.7,2.6884]
[1717088524033,5.42408,3787.8,3785.8,0.04031771]
[1717088524202,5.42408,3787.8,3785.9,0.05280317]
[1717088524406,5.42408,3787.8,3785.9,0.47121569]
[1717088524618,5.42408,3787.8,3785.9,0.41841252]
[1717088524850,2.64031,3787.5,3785.9,0.41841252]
[1717088525438,3.55,3787.4,3785.9,0.41841252]
[1717088526356,3.55,3787.4,3785.9,0.47121766]
[1717088526561,3.55,3787.4,3786.0,0.31596177]
[1717088526855,3.55,3787.4,3786.0,0.35584949]
[1717088527056,3.55,3787.4,3786.0,7.65584949]
[1717088527228,3.0,3787.4,3786.1,0.0469]
[1717088527550,3.0,3787.4,3786.2,0.05280496]
[1717088527706,3.0,3787.4,3786.2,0.77554837]
[1717088527906,3.0,3787.4,3786.2,0.81530809]
[1717088528317,3.0,3787.4,3786.4,1.0]
[1717088528556,2.63989,3788.1,3786.5,0.03958794]
[1717088529839,2.64001,3787.9,3786.5,0.03958794]
[1717088530114,2.64017,3787.7,3786.5,0.03958794]
[1717088530336,3.0,3787.6,3786.5,0.03958794]
[1717088530468,3.55,3787.6,3786.5,0.03958794]
[1717088531314,4.16636,3787.4,3786.5,0.03958794]
[1717088531483,3.55,3787.3,3786.5,0.03958794]
[1717088531687,3.55,3787.3,3786.3,0.0469]
[1717088531688,3.0,3787.3,3786.3,0.0469]
[1717088531904,3.0,3787.3,3786.6,0.03953069]
[1717088532185,1.526,3787.4,3786.7,0.03947344]
[1717088532405,0.55,3787.3,3786.7,0.03947344]
[1717088532581,0.55,3787.3,3786.2,0.77554837]
[1717088532782,0.55,3787.3,3786.8,0.03941619]
[1717088533002,0.55,3787.3,3786.3,0.83915101]
[1717088533197,0.55,3787.3,3786.9,0.03935894]
[1717088533424,0.55,3787.3,3786.3,0.83915101]
[1717088533583,0.55,3787.3,3787.0,0.0393017]
[1717088534024,0.55,3787.3,3786.3,0.83915101]
[1717088534187,0.55,3787.3,3787.1,0.03924446]
[1717088534392,0.55,3787.3,3786.3,0.83915101]
[1717088534580,0.55,3787.3,3787.2,0.03918722]
[1717088534800,0.55,3787.3,3786.3,0.83915101]
[1717088535129,0.55,3787.3,3787.2,0.03918722]
[1717088535498,2.64049,3787.2,3786.3,0.83915101]
[1717088535829,2.64062,3787.0,3786.4,0.0396452]
[1717088536203,2.64062,3787.0,3786.0,7.61596177]
[1717088536204,3.0,3786.9,3786.0,7.61596177]
[1717088536406,3.19078,3786.8,3786.5,0.03958794]
[1717088536703,3.0,3786.7,3786.5,0.03958794]
[1717088536903,0.55,3786.6,3786.0,7.3]
[1717088537303,3.0,3786.7,3786.0,7.3]
[1717088537503,3.0,3786.7,3786.1,0.73]
[1717088538427,3.0,3786.7,3786.0,7.3]
[1717088538600,0.55,3786.6,3785.6,7.3]
[1717088541169,2.64097,3786.5,3785.6,7.3]
[1717088541299,3.0,3786.4,3785.7,0.04011722]
[1717088541492,2.64113,3786.3,3785.7,0.04011722]
[1717088541851,3.0,3786.2,3785.7,0.04011722]
[1717088541993,3.55,3786.2,3785.6,7.3]
[1717088542192,3.55,3786.2,3785.8,0.0401984]
[1717088542436,3.55,3786.2,3785.6,7.3]
[1717088542612,3.55,3786.2,3785.9,0.04017767]
[1717088542808,3.55,3786.2,3785.6,7.3]
[1717088543145,3.55,3786.2,3786.0,0.0401204]
[1717088543301,3.55,3786.2,3785.6,7.3]
[1717088543656,3.0,3786.6,3785.9,0.0469]
[1717088543992,3.0,3786.6,3786.0,0.04012425]
[1717088545190,3.0,3786.6,3785.7,1.951]
[1717088545390,3.0,3786.6,3786.1,0.04006698]
[1717088545643,3.0,3786.6,3785.7,1.951]
[1717088545937,0.55,3786.5,3786.2,0.03994816]
[1717088546142,0.55,3786.5,3785.8,0.9251]
[1717088546313,0.55,3786.5,3786.3,0.0398909]
[1717088546504,0.55,3786.5,3785.8,0.9251]
[1717088546699,3.0,3786.6,3786.4,0.03983364]
[1717088546900,2.64135,3786.0,3785.6,7.3]
[1717088547220,2.64144,3785.8,3785.7,0.03896837]
[1717088547414,3.19144,3785.8,3785.6,7.3]
[1717088547618,3.0,3785.7,3785.6,7.3]
[1717088547803,3.55,3785.7,3785.6,7.3]
[1717088548696,3.55,3785.7,3783.6,3.19695075]
[1717088548697,6.718044,3785.7,3784.6,7.3]
[1717088548914,1.526,3785.0,3784.6,7.3]
[1717088549141,2.64207,3784.9,3784.6,7.3]
[1717088549347,2.64207,3784.9,3784.0,7.3]
[1717088549498,3.0,3784.8,3784.5,2.05877719]
[1717088551646,3.0,3785.2,3784.5,2.05877719]
[1717088555615,0.55,3785.6,3784.6,0.0469]
[1717088555616,3.0,3785.6,3784.6,0.0469]
[1717088556455,3.0,3785.6,3784.7,0.09237051]
[1717088556831,3.0,3785.6,3784.7,0.03954133]
[1717088557717,2.91717635,3786.1,3784.7,0.03954133]
[1717088557969,0.27590635,3786.1,3784.8,0.05282427]
[1717088558275,0.27590635,3786.1,3784.9,0.08653221]
[1717088558609,0.27590635,3786.1,3785.0,0.05282084]
[1717088558918,0.27590635,3786.1,3785.1,1.0]
[1717088559113,0.27590635,3786.1,3785.1,1.05281873]
[1717088559352,0.27590635,3786.1,3785.2,0.03946031]
[1717088560473,1.526,3786.7,3785.3,0.36814403]
[1717088560784,1.526,3786.7,3785.3,0.40754705]
[1717088562070,2.64089,3786.6,3785.3,0.40754705]
[1717088562223,3.0,3786.5,3785.3,0.40754705]
[1717088563645,1.526,3786.7,3785.4,0.0469]
[1717088563975,1.526,3786.7,3785.4,0.086263]
[1717088567313,3.0,3786.9,3785.4,0.086263]
[1717088567760,3.0,3786.9,3785.5,1.3096187]
[1717088567962,3.20400304,3790.1,3785.6,0.0469]
[1717088568330,0.04590567,3792.3,3791.1,1.0]
[1717088568457,0.1263646,3793.8,3791.1,1.0]
[1717088568458,0.57019755,3793.4,3791.1,1.0]
[1717088568798,0.27553909,3792.6,3791.2,0.03575917]
[1717088569109,0.27553909,3792.6,3790.5,2.63811]
[1717088569110,0.27553909,3792.6,3790.6,3.7389]
[1717088569408,2.63603,3793.6,3791.3,0.03570205]
[1717088569698,1.80148269,3792.8,3791.1,1.0]
[1717088569923,1.80148269,3792.8,3791.4,0.03564494]
[1717088570103,1.80148269,3792.8,3791.2,0.03575917]
[1717088570306,0.27548269,3792.8,3791.5,0.03558784]
[1717088570608,0.27548269,3792.8,3791.6,0.03550194]
[1717088570759,0.27548269,3792.8,3791.1,1.0]
[1717088570955,0.27548269,3792.8,3791.2,0.03573037]
[1717088571525,0.51572051,3792.8,3791.2,0.03573037]
[1717088572686,0.55,3792.7,3791.2,0.03573037]
[1717088574092,7.45172,3792.6,3791.2,0.03573037]
[1717088574306,7.45172,3792.6,3790.2,3.63831]
[1717088574307,2.031,3792.1,3790.2,3.63831]
[1717088574468,0.7531,3792.0,3791.3,0.03456194]
[1717088574660,3.7531,3792.0,3790.2,4.002141]
[1717088574969,3.7531,3792.0,3791.4,0.03356164]
[1717088575172,0.57841,3791.9,3790.2,4.002141]
[1717088575369,0.55,3791.8,3790.2,4.002141]
[1717088575574,0.55,3791.8,3790.3,0.03419001]
[1717088576418,3.0,3792.0,3790.9,3.63788]
[1717088576713,3.0,3793.1,3791.0,0.363788]
[1717088576895,0.27548269,3792.8,3791.0,0.39764702]
[1717088577199,0.27548269,3792.8,3791.0,0.45038067]
[1717088577409,0.27548269,3792.8,3791.0,0.39764702]
[1717088577618,0.27548269,3792.8,3791.0,0.363788]
[1717088577770,0.55,3792.7,3791.1,0.4001668]
[1717088582929,0.27548269,3792.8,3791.5,2.63742]
[1717088583110,0.0958955,3792.9,3791.6,0.05272824]
[1717088583322,0.0958955,3792.9,3791.6,0.0852421]
[1717088583623,0.0958955,3792.9,3791.7,0.27695621]
[1717088583921,0.0958955,3792.9,3791.7,0.30941297]
[1717088585420,0.0958955,3792.9,3792.1,1.0]
[1717088585623,2.031,3794.3,3792.1,1.0]
[1717088585805,0.40179273,3793.8,3792.2,0.03205833]
[1717088585986,0.40179273,3793.8,3792.3,35.0]
[1717088586179,0.40179273,3793.8,3792.4,0.38096092]
[1717088586580,0.40179273,3793.8,3792.4,0.03190014]
[1717088586780,0.40179273,3793.8,3792.5,35.0]
[1717088586996,0.40179273,3793.8,3792.6,0.0317037]
[1717088587718,0.40179273,3793.8,3791.9,8.3]
[1717088587921,0.40179273,3793.8,3792.7,0.03164663]
[1717088588121,3.23976327,3793.7,3791.9,8.3]
[1717088588325,2.63609,3793.5,3792.8,0.03158956]
[1717088588626,3.0,3793.4,3791.9,8.3]
[1717088588796,2.63626,3793.3,3792.9,0.03153249]
[1717088588997,2.63626,3793.3,3791.9,8.3]
[1717088588998,2.63636,3793.1,3791.9,7.3]
[1717088589201,0.55,3793.0,3792.0,0.03204618]
[1717088589525,3.0,3793.0,3792.0,0.03204618]
[1717088589682,3.0,3793.0,3792.1,0.71289178]
[1717088589881,3.0,3793.0,3792.1,0.74488662]
[1717088590527,3.0,3793.0,3792.1,1.74488662]
[1717088590727,2.6362,3793.4,3792.1,1.74488662]
[1717088590881,2.63634,3793.2,3792.1,1.74488662]
[1717088591088,3.0,3793.1,3792.2,0.4001668]
[1717088591323,3.0,3793.1,3792.2,0.43210455]
[1717088591826,2.63624,3793.3,3792.2,0.43210455]
[1717088592129,3.0,3793.2,3792.2,0.43210455]
[1717088592333,3.0,3793.2,3792.3,0.21449963]
[1717088592825,3.0,3793.2,3792.4,0.03182359]
[1717088593305,2.63638,3793.1,3792.4,0.03182359]
[1717088594432,2.63661,3792.8,3792.4,0.03182359]
[1717088594657,3.0,3792.7,3791.9,7.3]
[1717088594929,3.0,3792.7,3791.2,7.3]
[1717088594930,1.523,3792.5,3791.2,7.3]
[1717088595332,0.55,3792.4,3791.2,42.3]
[1717088595895,2.63704,3792.2,3791.2,42.3]
[1717088596738,2.63734,3791.7,3791.2,7.3]
[1717088596941,0.55,3791.6,3789.1,8.99431716]
[1717088597152,0.55,3791.6,3789.6,1.0]
[1717088597153,2.63782,3791.0,3789.6,1.0]
[1717088597435,2.63782,3791.0,3789.8,35.0]
[1717088597637,3.0,3790.9,3789.8,35.0]
[1717088598340,3.0,3790.9,3789.6,1.0]
[1717088598813,3.0,3790.9,3790.3,35.0]
[1717088600032,2.63801,3790.8,3790.3,35.0]
[1717088601130,2.63801,3790.8,3790.4,0.02848849]
[1717088601351,2.6381,3790.6,3790.4,0.02848849]
[1717088601645,2.6381,3790.6,3788.9,1.055886]
[1717088601646,2.3133,3790.4,3788.9,1.055886]
[1717088601812,2.3133,3790.4,3788.7,0.28510413]
[1717088601813,2.63942,3788.7,3787.8,35.0]
[1717088601998,2.63942,3788.7,3787.9,0.31144508]
[1717088602198,2.63942,3788.7,3787.9,0.35590442]
[1717088602400,2.63942,3788.7,3787.9,0.07080029]
[1717088602809,2.63942,3788.7,3787.9,0.05057163]
[1717088603712,2.63973,3788.3,3787.9,0.05057163]
[1717088604702,2.63973,3788.3,3787.9,0.03540014]
[1717088605905,5.63933,3788.9,3787.9,0.03540014]
[1717088606106,2.63933,3788.9,3787.9,0.03540014]
[1717088606447,2.63989,3788.1,3787.9,0.03540014]
[1717088606743,2.64005,3787.8,3786.6,0.04592847]
[1717088606940,2.64005,3787.8,3786.4,1.056692]
[1717088607139,2.64036,3787.4,3786.7,0.02790401]
[1717088607445,2.64036,3787.4,3786.8,35.02598649]
[1717088607652,2.64068,3786.9,3786.8,35.02598649]
[1717088612212,5.64068,3786.9,3786.8,35.02598649]
[1717088612859,2.473,3787.5,3786.8,35.02598649]
[1717088613062,2.031,3788.1,3786.8,35.02598649]
[1717088613063,2.64039,3787.4,3786.8,35.02598649]
[1717088613361,3.0,3788.0,3786.8,0.02598649]
[1717088613362,2.91585026,3787.9,3786.8,0.02598649]
[1717088613655,2.64034,3787.4,3786.4,7.3]
[1717088613854,2.2915,3787.3,3786.9,0.02613076]
[1717088614056,2.2915,3787.3,3785.5,1.056963]
[1717088614057,2.64097,3786.5,3785.5,1.056963]
[1717088614430,2.64097,3786.5,3785.6,35.0]
[1717088615153,2.64118,3786.2,3785.6,35.0]
[1717088616020,2.64118,3786.2,3785.7,0.02621505]
[1717088616257,2.64118,3786.2,3785.0,1.057028]
[1717088616554,3.0,3787.1,3785.8,0.02620764]
[1717088616555,2.64089,3786.6,3785.8,0.02620764]
[1717088616855,2.64089,3786.6,3786.1,35.0]
[1717088617231,2.64089,3786.6,3786.2,0.02597855]
[1717088618528,2.64089,3786.6,3786.3,35.0]
[1717088619045,2.64089,3786.6,3786.4,0.02771146]
[1717088619246,2.64062,3787.0,3785.3,0.0754]
[1717088619565,3.0,3786.9,3786.8,35.0]
[1717088619926,3.0,3786.9,3786.8,35.02746609]
[1717088620123,2.64062,3787.0,3786.8,35.02746609]
[1717088620527,2.64062,3787.0,3786.8,0.02746609]
[1717088620734,2.64062,3787.0,3786.0,7.3]
[1717088620959,2.64062,3787.0,3786.9,0.02740475]
[1717088621277,2.031,3787.2,3785.0,1.057028]
[1717088621278,2.784,3787.1,3785.0,1.057028]
[1717088621482,2.031,3786.2,3784.7,9.00477373]
[1717088621652,2.64163,3785.6,3784.7,9.00477373]
[1717088621825,0.55,3785.5,3784.8,0.90047737]
[1717088622277,2.64179,3785.4,3784.8,0.90047737]
[1717088622926,2.64179,3785.4,3784.0,1.0]
[1717088623432,2.64194,3785.1,3783.8,1.10330854]
[1717088623734,2.64194,3785.1,3783.8,0.04592654]
[1717088626272,2.64246,3784.4,3783.8,0.04592654]
[1717088626621,2.64246,3784.4,3781.0,1.10804151]
[1717088626622,5.0907,3782.7,3781.0,1.10804151]
[1717088626942,2.6439,3782.3,3781.1,0.05289535]
[1717088627074,2.6439,3782.3,3780.7,1.0]
[1717088627269,2.6439,3782.3,3781.1,1.0]
[1717088627589,0.264246,3784.3,3781.5,1.0]
[1717088627784,2.64319,3783.4,3781.5,1.0]
[1717088627991,2.64368,3782.6,3781.2,1.057978]
[1717088628173,2.64368,3782.6,3781.1,1.0]
[1717088628373,2.64368,3782.6,3781.3,0.04038656]
[1717088628613,2.64368,3782.6,3781.2,0.04554253]
[1717088628817,2.64368,3782.6,3781.1,1.0]
[1717088628998,2.64368,3782.6,3781.3,0.04038656]
[1717088629203,2.64368,3782.6,3781.2,0.24629105]
[1717088629378,2.64368,3782.6,3781.2,0.2058088]
[1717088629580,2.64368,3782.6,3781.1,1.0]
[1717088629581,2.64368,3782.6,3781.3,0.03124614]
[1717088629804,2.031,3783.6,3782.2,1.0]
[1717088630008,2.64292,3783.7,3782.2,1.0]
[1717088630209,2.64292,3783.7,3782.3,0.08338742]
[1717088631175,2.64292,3783.7,3782.4,0.37273874]
[1717088631382,2.64292,3783.7,3782.3,0.03052866]
[1717088631623,2.64292,3783.7,3782.5,0.0303852]
[1717088631877,2.64292,3783.7,3782.1,1.0]
[1717088632084,2.64292,3783.7,3782.2,0.03338224]
[1717088632722,2.031,3784.0,3782.2,0.03338224]
[1717088632723,2.64322,3783.3,3782.2,0.03338224]
[1717088632928,2.64341,3783.0,3782.4,4.0]
[1717088633115,2.64341,3783.0,3782.5,0.0303852]
[1717088639751,2.64341,3783.0,3782.5,4.0303852]
[1717088640060,2.64341,3783.0,3782.6,0.40303852]
[1717088640411,3.0,3783.7,3782.7,0.03107567]
[1717088640755,2.64312,3783.5,3782.7,4.03107567]
[1717088640955,0.55,3783.4,3782.7,4.03107567]
[1717088641742,2.64312,3783.5,3782.7,4.03107567]
[1717088641947,2.64276,3784.0,3782.8,0.44341142]
[1717088642147,2.64276,3784.0,3782.9,0.03084109]
[1717088643114,2.64276,3784.0,3782.9,4.03084109]
[1717088643855,2.64237,3784.5,3783.0,0.05285412]
[1717088644058,2.64237,3784.5,3783.1,0.81705066]
[1717088644221,2.64237,3784.5,3783.2,0.05284985]
[1717088644650,2.64237,3784.5,3783.3,0.03308343]
[1717088644963,2.64237,3784.5,3783.3,0.08593329]
[1717088645166,2.64237,3784.5,3783.3,4.57623169]
[1717088645861,2.64209,3784.9,3783.3,10.53021169]
[1717088646445,2.64209,3784.9,3783.3,10.48931177]
[1717088646761,2.64179,3785.4,3783.7,1.0]
[1717088646925,2.64179,3785.4,3783.8,3.007073]
[1717088647261,2.64179,3785.4,3783.9,0.05085233]
[1717088647625,2.64179,3785.4,3784.0,0.05283687]
[1717088647858,2.64179,3785.4,3784.0,4.0]
[1717088648064,2.64179,3785.4,3784.1,0.04428079]
[1717088648280,2.64179,3785.4,3784.2,0.40442808]
[1717088648620,2.64179,3785.4,3784.3,0.04406582]
[1717088649058,2.64179,3785.4,3784.3,4.04406582]
[1717088649673,2.64146,3785.8,3784.3,4.04406582]
[1717088650359,2.64171,3785.5,3784.3,4.04406582]
[1717088650666,2.64171,3785.5,3784.4,1.00220887]
[1717088651096,2.64171,3785.5,3784.5,0.05011528]
[1717088651261,2.64171,3785.5,3785.3,35.0]
[1717088652119,3.55,3785.4,3785.3,35.0]
[1717088653324,2.64171,3785.5,3785.3,35.0]
[1717088653470,2.6414,3785.9,3785.3,36.95913638]
[1717088653673,2.6414,3785.9,3785.3,35.0]
[1717088655210,2.64163,3785.6,3784.7,7.3]
[1717088655413,2.64163,3785.6,3784.8,4.0]
[1717088655591,2.64163,3785.6,3785.4,35.0]
[1717088658718,2.64135,3786.0,3785.4,35.0]
[1717088658873,2.64155,3785.7,3785.4,35.0]
[1717088660637,2.64155,3785.7,3785.4,36.44309715]
[1717088661386,2.64155,3785.7,3785.4,35.0]
[1717088662510,2.64165,3785.5,3785.4,35.0]
[1717088662829,2.64207,3784.9,3784.8,4.0]
[1717088663186,2.64207,3784.9,3784.8,39.0]
[1717088663589,2.64178,3785.4,3784.8,41.64560763]
[1717088663783,2.64199,3785.1,3784.8,41.64560763]
[1717088664802,2.64207,3784.9,3784.8,39.0]
[1717088665806,2.64207,3784.9,3784.8,35.0]
[1717088667341,2.91724852,3784.9,3784.8,35.0]
[1717088667519,3.46724852,3784.9,3784.8,35.0]
[1717088669041,2.64265,3784.1,3783.7,7.3]
[1717088669202,2.64265,3784.1,3783.9,4.0]
[1717088669713,2.6424,3784.5,3784.0,35.05029797]
[1717088670132,2.6424,3784.5,3784.0,39.05029797]
[1717088671548,2.6424,3784.5,3784.0,4.05029797]
[1717088671755,3.19317002,3784.9,3784.1,0.4050298]
[1717088671901,0.27517852,3784.9,3784.8,35.0]
[1717088672101,2.64181,3785.3,3784.8,35.0]
[1717088672338,0.27514051,3785.1,3784.9,2.64560763]
[1717088672542,0.27514051,3785.1,3784.3,9.5961]
[1717088672705,0.27514051,3785.1,3784.4,0.0581077]
[1717088672906,0.27514051,3785.1,3785.0,35.0]
[1717088674322,0.82514051,3785.1,3785.0,35.0]
[1717088674522,0.27514051,3785.1,3785.0,35.0]
[1717088677218,0.82514051,3785.1,3785.0,35.0]
[1717088678861,2.6421,3784.9,3784.3,7.3]
[1717088679017,2.6421,3784.9,3784.4,4.0]
[1717088679018,2.64223,3784.7,3784.4,4.0]
[1717088679218,2.64223,3784.7,3784.6,35.0]
[1717088679432,3.19223,3784.7,3784.6,35.0]
[1717088679633,3.19223,3784.7,3784.6,35.04349884]
[1717088680438,2.64223,3784.7,3784.6,35.04349884]
[1717088681368,2.64223,3784.7,3784.6,37.68910647]
[1717088681866,0.27514051,3785.1,3784.6,37.68910647]
[1717088681867,2.91713051,3785.1,3784.6,37.68910647]
[1717088682094,2.91713051,3785.1,3784.6,2.68910647]
[1717088682377,2.91713051,3785.1,3784.6,4.04349884]
[1717088682522,2.91713051,3785.1,3785.0,35.0]
[1717088682840,2.64199,3785.1,3785.0,35.0]
[1717088683225,2.64199,3785.1,3785.0,39.0]
[1717088686509,2.64171,3785.5,3785.0,39.0]
[1717088686639,2.64171,3785.5,3785.1,2.64560763]
[1717088686966,2.64171,3785.5,3785.1,4.0]
[1717088687165,2.64171,3785.5,3785.2,35.0]
[1717088687869,2.64143,3785.9,3785.2,4.0]
[1717088688374,2.64143,3785.9,3785.6,35.0]
[1717088689135,3.0,3786.5,3785.2,4.0]
[1717088689380,2.4506,3787.0,3785.2,4.0]
[1717088689381,2.6412,3786.2,3785.3,0.66419]
[1717088689685,2.6412,3786.2,3786.1,35.0]
[1717088690355,3.1912,3786.2,3786.1,35.0]
[1717088693055,2.6412,3786.2,3786.1,35.0]
[1717088694979,3.1912,3786.2,3786.1,35.0]
[1717088697891,2.64157,3785.7,3785.5,4.0]
[1717088698473,2.64157,3785.7,3785.6,35.0]
[1717088699017,2.64157,3785.7,3785.6,39.0]
[1717088699776,2.91663011,3785.7,3785.6,39.0]
[1717088700510,3.46663011,3785.7,3785.6,39.0]
[1717088700806,2.91663011,3785.7,3785.6,35.0]
[1717088701017,0.27506011,3785.7,3785.6,37.64560763]
[1717088701300,0.27583946,3786.5,3785.6,38.64560763]
[1717088701301,2.91683946,3786.5,3785.6,38.64560763]
[1717088701455,2.641,3786.5,3785.6,3.64560763]
[1717088701654,2.641,3786.5,3785.6,1.0]
[1717088701871,2.641,3786.5,3786.2,35.0]
[1717088702056,2.641,3786.5,3786.2,39.0]
[1717088704955,2.64073,3786.9,3786.2,39.0]
[1717088708114,2.64092,3786.6,3786.2,39.0]
[1717088708314,2.64092,3786.6,3786.3,2.64560763]
[1717088708516,2.64092,3786.6,3786.3,6.64560763]
[1717088708680,2.64092,3786.6,3786.3,4.0]
[1717088709052,2.64092,3786.6,3786.4,35.0]
[1717088709417,2.64092,3786.6,3786.4,39.0]
[1717088711541,2.64065,3787.0,3786.4,4.0]
[1717088712025,2.64065,3787.0,3786.8,35.0]
[1717088712182,2.64065,3787.0,3786.9,2.64560763]
[1717088712376,3.19065,3787.0,3786.9,2.64560763]
[1717088712718,3.19065,3787.0,3786.4,4.0]
[1717088712916,3.19065,3787.0,3786.9,35.0]
[1717088714385,2.64065,3787.0,3786.9,39.0]
[1717088715197,3.19065,3787.0,3786.9,39.0]
[1717088716535,2.64065,3787.0,3786.9,39.0]
[1717088716683,2.64065,3787.0,3786.9,41.64560763]
[1717088718429,2.64065,3787.0,3786.9,39.0]
[1717088726268,3.0,3788.0,3786.9,39.0]
[1717088726269,2.64039,3787.4,3786.9,39.0]
[1717088726564,2.64048,3787.2,3786.9,39.0]
[1717088729393,2.2691625,3787.2,3786.9,39.0]
[1717088729595,2.63994,3788.0,3786.9,4.0]
[1717088730114,2.63994,3788.0,3787.5,35.0]
[1717088730267,2.63964,3788.4,3787.6,0.05280082]
[1717088730469,2.63964,3788.4,3787.6,0.05279688]
[1717088730667,2.63964,3788.4,3787.6,4.05279688]
[1717088730858,2.63964,3788.4,3787.7,2.64560763]
[1717088731676,2.63964,3788.4,3787.7,6.64560763]
[1717088732460,0.55,3788.3,3787.7,6.64560763]
[1717088732671,2.63982,3788.2,3787.7,6.64560763]
[1717088732878,0.55,3788.1,3787.7,6.64560763]
[1717088733056,0.55,3788.1,3787.8,2.64560763]
[1717088733284,0.55,3788.1,3787.8,4.0]
[1717088734696,0.55,3788.1,3787.3,7.3]
[1717088734697,3.9778,3787.9,3787.3,7.3]
[1717088734898,4.16833,3787.4,3787.3,7.3]
[1717088735108,2.64073,3786.9,3786.5,7.3]
[1717088735395,2.64073,3786.9,3786.5,0.73]
[1717088735701,2.64073,3786.9,3786.1,12.21]
[1717088736295,2.64073,3786.9,3786.6,35.0]
[1717088737627,2.64082,3786.7,3786.6,35.0]
[1717088737902,3.19082,3786.7,3786.6,35.0]
[1717088745943,2.64134,3786.0,3785.6,7.3]
[1717088746137,0.55,3785.9,3785.7,1.951]
[1717088746344,2.64149,3785.8,3785.1,7.3]
[1717088746567,0.55,3785.7,3785.1,7.3]
[1717088746777,0.55,3785.7,3785.6,35.0]
[1717088746983,2.64149,3785.8,3785.6,35.0]
[1717088748242,2.904,3785.7,3785.6,35.0]
[1717088748440,0.55,3785.7,3785.6,35.0]
[1717088750059,2.6412,3786.2,3785.6,37.64560763]
[1717088750461,2.6412,3786.2,3785.6,2.64560763]
[1717088750650,2.6412,3786.2,3784.9,5.93064]
[1717088750651,2.6412,3786.2,3784.9,6.987721]
[1717088750963,2.6412,3786.2,3786.1,35.0]
[1717088751791,3.1912,3786.2,3786.1,35.0]
[1717088752160,2.2927,3787.0,3786.1,35.0]
[1717088752161,2.64088,3786.7,3786.1,35.0]
[1717088752362,2.64106,3786.4,3785.4,7.3]
[1717088752700,2.64127,3786.1,3785.5,1.094184]
[1717088754195,4.93334,3787.0,3785.5,1.094184]
[1717088754196,2.64147,3785.8,3785.5,1.094184]
[1717088754430,2.64147,3785.8,3784.9,9.5886]
[1717088754640,2.64167,3785.5,3784.9,9.5886]
[1717088755142,2.64167,3785.5,3784.9,7.3]
[1717088756110,2.64138,3785.9,3784.9,7.3]
[1717088756443,2.64113,3786.3,3785.1,2.64193]
[1717088756738,2.64136,3786.0,3785.0,0.994211]
[1717088757906,2.64156,3785.7,3785.0,0.994211]
[1717088758112,2.64156,3785.7,3785.1,0.8294211]
[1717088758314,2.64168,3785.5,3785.1,0.8294211]
[1717088762037,2.64143,3785.9,3785.1,0.8294211]
[1717088763042,2.64159,3785.6,3785.1,0.8294211]
[1717088763239,4.169,3786.5,3785.1,0.8294211]
[1717088763240,2.64182,3785.3,3785.1,0.8294211]
[1717088763848,2.64202,3785.0,3784.4,8.357233]
[1717088764016,2.64202,3785.0,3784.1,0.6904822]
[1717088764210,0.55,3784.9,3784.2,2.07791062]
[1717088764941,2.64217,3784.8,3784.2,2.07791062]
[1717088765858,2.6424,3784.5,3784.2,2.07791062]
[1717088766062,2.6424,3784.5,3784.2,0.0578624]
[1717088767917,2.64249,3784.3,3784.2,0.0578624]
[1717088768224,3.19249,3784.3,3784.0,7.3]
[1717088768428,2.64263,3784.1,3784.0,7.3]
[1717088768629,2.64263,3784.1,3783.3,7.3]
[1717088768853,2.64263,3784.1,3783.5,1.951]
[1717088769176,0.55,3784.4,3783.5,2.23656195]
[1717088769519,2.64238,3784.5,3783.6,2.64295]
[1717088769776,2.64212,3784.9,3783.9,2.64276]
[1717088769954,2.64184,3785.3,3784.2,2.64254]
[1717088770273,2.64184,3785.3,3784.4,2.6424]
[1717088770418,2.64184,3785.3,3784.5,0.05283758]
[1717088770622,2.64184,3785.3,3784.4,2.6424]
[1717088770947,2.64184,3785.3,3784.5,0.26424]
[1717088771150,2.64152,3785.7,3784.6,2.64225]
[1717088771375,2.64152,3785.7,3784.7,2.2613]
[1717088771748,2.64174,3785.4,3784.7,2.2613]